bitfinex/quotes_ETHUSD_20250908
["timestamp","ask_amount","ask_price","bid_price","bid_amount"]
[1757364173004,22.23142587,4289.2,4289.1,0.30950001]
[1757364174300,22.85779609,4289.2,4289.1,0.30950001]
[1757364174497,18.95179609,4289.2,4289.1,0.30950001]
[1757364174678,22.85679609,4289.2,4289.1,0.30950001]
[1757364175080,22.23042587,4289.2,4289.1,0.30950001]
[1757364175316,18.32542587,4289.2,4289.1,0.30950001]
[1757364175496,18.99459407,4289.2,4289.1,1.25890001]
[1757364175898,19.78659407,4289.2,4289.1,0.78220001]
[1757364176102,19.78659407,4289.2,4289.1,0.30950001]
[1757364176418,19.78659407,4289.2,4289.1,0.00200001]
[1757364176714,23.02947922,4289.2,4289.1,0.00200001]
[1757364176886,23.49527922,4289.2,4289.1,0.00200001]
[1757364180016,22.53787922,4289.2,4289.1,0.00200001]
[1757364180186,22.22977922,4289.2,4289.1,0.00200001]
[1757364182264,22.51717922,4289.2,4289.1,0.00200001]
[1757364183161,23.46117922,4289.2,4289.1,0.00200001]
[1757364183418,25.48654944,4289.2,4289.1,0.00200001]
[1757364183615,3.0,4289.1,4288.8,0.025]
[1757364183816,3.12360017,4288.9,4288.8,0.025]
[1757364184016,4.25915715,4288.9,4288.8,0.025]
[1757364184201,5.20315715,4288.9,4288.8,0.025]
[1757364185102,5.20418103,4288.9,4288.8,0.025]
[1757364185944,8.20418103,4288.9,4288.8,0.025]
[1757364186146,10.4329428,4288.9,4288.8,0.025]
[1757364186299,18.04655281,4288.9,4288.8,0.025]
[1757364187548,25.16655281,4288.9,4288.8,0.025]
[1757364188305,23.93515281,4288.9,4288.8,0.3177]
[1757364189209,24.22255281,4288.9,4288.8,0.025]
[1757364189413,25.16655281,4288.9,4288.8,0.025]
[1757364192050,27.83815281,4288.9,4288.8,0.025]
[1757364192233,28.12555281,4288.9,4288.8,0.025]
[1757364192651,27.83883202,4288.9,4288.8,0.025]
[1757364195543,16.32222201,4288.9,4288.8,0.025]
[1757364195869,20.22522201,4288.9,4288.8,0.3177]
[1757364196372,19.87587635,4288.9,4288.8,0.3177]
[1757364196703,20.22510698,4288.9,4288.8,0.025]
[1757364197000,21.45650698,4288.9,4288.8,0.025]
[1757364198128,20.51250698,4288.9,4288.8,0.025]
[1757364198380,20.22510698,4288.9,4288.8,0.025]
[1757364199646,20.51250698,4288.9,4288.8,0.025]
[1757364201150,20.22510698,4288.9,4288.8,0.025]
[1757364201692,20.22410698,4288.9,4288.8,0.3177]
[1757364203763,20.22410698,4288.9,4288.8,0.3197]
[1757364204159,19.87487635,4288.9,4288.8,0.027]
[1757364205943,28.71988636,4288.9,4288.8,0.027]
[1757364207982,29.06876575,4288.9,4288.8,0.027]
[1757364210370,29.06876575,4288.9,4288.8,1e-08]
[1757364210572,1.399,4288.7,4288.3,0.002]
[1757364210771,14.36586136,4288.4,4288.3,0.002]
[1757364210976,28.31365516,4288.4,4288.3,0.002]
[1757364211172,29.23205516,4288.4,4288.3,0.002]
[1757364211400,28.60367583,4288.4,4288.3,0.002]
[1757364211600,30.8715838,4288.4,4288.3,0.002]
[1757364211806,22.05217379,4288.4,4288.3,0.002]
[1757364212186,22.80187379,4288.4,4288.3,0.002]
[1757364212385,23.27147379,4288.4,4288.3,0.002]
[1757364212802,18.45207379,4288.4,4288.3,0.002]
[1757364213008,22.05217379,4288.4,4288.3,0.002]
[1757364214190,22.05217379,4288.4,4288.3,0.2923]
[1757364214865,18.15117379,4288.4,4288.3,0.2923]
[1757364215069,18.15117379,4288.4,4288.3,0.7591]
[1757364215070,18.99226582,4288.4,4288.3,0.7591]
[1757364215316,18.99226582,4288.4,4288.3,0.2923]
[1757364215870,19.78426582,4288.4,4288.3,0.2923]
[1757364218120,19.65243605,4288.4,4288.3,0.2923]
[1757364218326,19.78330074,4288.4,4288.3,0.2923]
[1757364218537,30.37896586,4288.4,4288.3,0.002]
[1757364218719,30.82776586,4288.4,4288.3,0.002]
[1757364219822,29.90936586,4288.4,4288.3,0.002]
[1757364220171,29.60846586,4288.4,4288.3,0.002]
[1757364221325,19.78334401,4288.4,4288.3,0.2923]
[1757364221530,15.88334401,4288.4,4288.3,0.7591]
[1757364221731,16.78334401,4288.4,4288.3,1.2185]
[1757364222285,16.78334401,4288.4,4288.3,0.7591]
[1757364222924,16.78334401,4288.4,4288.3,0.2923]
[1757364223513,16.78337452,4288.4,4288.3,0.2923]
[1757364226210,16.78337452,4288.4,4288.3,0.7591]
[1757364227178,12.88337452,4288.4,4288.3,1.2185]
[1757364227520,16.28186011,4288.4,4288.3,1.2185]
[1757364227705,9.702,4288.4,4288.3,1.34475]
[1757364228023,11.811,4288.4,4288.3,1.34475]
[1757364229323,14.14287202,4288.4,4288.3,1.2185]
[1757364229985,11.811,4288.4,4288.3,1.2185]
[1757364231229,14.14287202,4288.4,4288.3,1.2185]
[1757364232834,11.811,4288.4,4288.3,1.2185]
[1757364234696,0.001,4288.5,4288.3,1.2185]
[1757364234914,0.117,4288.5,4288.4,0.94951872]
[1757364235252,0.117,4288.5,4288.4,3.25807202]
[1757364235399,0.117,4288.5,4288.4,3.54837202]
[1757364236063,0.001,4288.5,4288.4,3.54837202]
[1757364241160,0.001,4288.5,4288.4,3.66437202]
[1757364241525,0.001,4288.5,4288.4,6.66437202]
[1757364242142,0.001,4288.5,4288.4,6.20497202]
[1757364242539,0.001,4288.5,4288.4,9.51917202]
[1757364242902,0.001,4288.5,4288.4,3.2903]
[1757364243107,0.908,4288.4,4288.3,0.002]
[1757364243357,2.1395,4288.4,4288.3,0.002]
[1757364243720,4.47137202,4288.4,4288.3,0.002]
[1757364244010,5.15412044,4288.4,4288.3,0.002]
[1757364249170,9.20391244,4288.4,4288.3,0.002]
[1757364249885,16.32391244,4288.4,4288.3,0.002]
[1757364252043,14.59566402,4288.4,4288.3,0.002]
[1757364252241,14.29266402,4288.4,4288.3,0.002]
[1757364252686,10.39666402,4288.4,4288.3,0.002]
[1757364252841,14.29266402,4288.4,4288.3,0.002]
[1757364253272,14.59566402,4288.4,4288.3,0.002]
[1757364253455,15.04146402,4288.4,4288.3,0.002]
[1757364254287,15.52416402,4288.4,4288.3,0.002]
[1757364254587,15.07836402,4288.4,4288.3,0.002]
[1757364254786,15.52416402,4288.4,4288.3,0.002]
[1757364256243,14.29266402,4288.4,4288.3,0.002]
[1757364256445,14.59566402,4288.4,4288.3,0.002]
[1757364256644,14.29266402,4288.4,4288.3,0.002]
[1757364257444,14.59566402,4288.4,4288.3,0.002]
[1757364257645,15.52416402,4288.4,4288.3,0.002]
[1757364262265,15.52416402,4288.4,4288.3,0.002]
[1757364264374,14.59566402,4288.4,4288.3,0.002]
[1757364264669,14.29266402,4288.4,4288.3,0.002]
[1757364266410,14.29166402,4288.4,4288.3,0.2926]
[1757364267111,14.29166402,4288.4,4288.3,0.002]
[1757364267517,14.59466402,4288.4,4288.3,0.002]
[1757364267677,15.52316402,4288.4,4288.3,0.002]
[1757364269178,15.04046402,4288.4,4288.3,0.002]
[1757364270373,15.52316402,4288.4,4288.3,0.002]
[1757364271516,17.43962333,4288.4,4288.3,0.002]
[1757364271815,17.65773189,4288.4,4288.3,0.002]
[1757364272116,18.16033635,4288.4,4288.3,0.002]
[1757364272445,18.1603511,4288.4,4288.3,0.002]
[1757364275429,16.9278511,4288.4,4288.3,0.002]
[1757364275724,16.9278511,4288.4,4288.3,0.3122]
[1757364276297,16.9278511,4288.4,4288.3,0.002]
[1757364278532,16.20712333,4288.4,4288.3,0.002]
[1757364278832,17.24048647,4288.4,4288.3,0.002]
[1757364278990,18.16078647,4288.4,4288.3,0.002]
[1757364281337,17.72688647,4288.4,4288.3,0.002]
[1757364281545,13.03398647,4288.4,4288.3,0.3122]
[1757364281836,14.29066402,4288.4,4288.3,1.2406]
[1757364281986,14.29066402,4288.4,4288.3,0.7677]
[1757364285023,14.29066402,4288.4,4288.3,0.3122]
[1757364285938,16.26550736,4288.4,4288.3,0.002]
[1757364286240,17.53467461,4288.4,4288.3,0.002]
[1757364286892,18.03711298,4288.4,4288.3,0.002]
[1757364290187,17.53467461,4288.4,4288.3,0.002]
[1757364290384,18.03702227,4288.4,4288.3,0.002]
[1757364291394,17.53467461,4288.4,4288.3,0.002]
[1757364291597,17.04827461,4288.4,4288.3,0.002]
[1757364291795,16.61437461,4288.4,4288.3,0.002]
[1757364292022,16.30187461,4288.4,4288.3,0.002]
[1757364292559,16.30087461,4288.4,4288.3,0.002]
[1757364292933,17.09977461,4288.4,4288.3,0.002]
[1757364293137,18.03613727,4288.4,4288.3,0.002]
[1757364295829,17.53367461,4288.4,4288.3,0.002]
[1757364296421,18.03639617,4288.4,4288.3,0.002]
[1757364296639,17.53367461,4288.4,4288.3,0.002]
[1757364297040,18.03638103,4288.4,4288.3,0.002]
[1757364298026,15.14123769,4288.4,4288.3,0.002]
[1757364298352,15.14123769,4288.4,4288.3,0.3122]
[1757364300257,11.24823769,4288.4,4288.3,0.3122]
[1757364300404,14.63753127,4288.4,4288.3,0.3122]
[1757364300605,14.63753127,4288.4,4288.3,0.002]
[1757364300863,15.87033127,4288.4,4288.3,0.002]
[1757364301023,16.3723303,4288.4,4288.3,0.002]
[1757364301225,16.96131675,4288.4,4288.3,0.002]
[1757364301749,16.45931772,4288.4,4288.3,0.002]
[1757364302964,16.96564208,4288.4,4288.3,0.002]
[1757364303484,16.46341772,4288.4,4288.3,0.002]
[1757364303636,14.63753127,4288.4,4288.3,0.002]
[1757364303832,15.1400018,4288.4,4288.3,0.2971]
[1757364305335,14.63752524,4288.4,4288.3,0.2971]
[1757364305537,14.41948957,4288.4,4288.3,0.2971]
[1757364306078,14.41948957,4288.4,4288.3,0.002]
[1757364306243,15.66218957,4288.4,4288.3,0.002]
[1757364306428,16.47737066,4288.4,4288.3,0.002]
[1757364306630,16.69562077,4288.4,4288.3,0.002]
[1757364306847,17.19847086,4288.4,4288.3,0.002]
[1757364307276,16.69562077,4288.4,4288.3,0.002]
[1757364307476,16.69566761,4288.4,4288.3,0.002]
[1757364312925,17.19859107,4288.4,4288.3,0.002]
[1757364313433,16.25766761,4288.4,4288.3,0.002]
[1757364314024,15.76786761,4288.4,4288.3,0.002]
[1757364314998,14.63678652,4288.4,4288.3,0.2971]
[1757364315536,14.15968652,4288.4,4288.3,0.002]
[1757364315682,15.87948652,4288.4,4288.3,0.002]
[1757364317497,25.39417969,4288.4,4288.3,0.002]
[1757364317701,27.66208766,4288.4,4288.3,0.002]
[1757364318119,30.66208766,4288.4,4288.3,0.002]
[1757364318504,14.6409264,4288.3,4288.2,0.002]
[1757364318708,15.49229675,4288.3,4288.2,0.002]
[1757364318908,3.12398078,4288.2,4288.1,1e-08]
[1757364319138,15.18491769,4288.2,4288.1,1e-08]
[1757364319434,15.7759591,4288.2,4288.1,1e-08]
[1757364319641,16.40427215,4288.2,4288.1,1e-08]
[1757364319937,15.7759591,4288.2,4288.1,1e-08]
[1757364321035,16.40267678,4288.2,4288.1,1e-08]
[1757364321235,15.7759591,4288.2,4288.1,1e-08]
[1757364321787,15.3379591,4288.2,4288.1,1e-08]
[1757364321994,24.01558247,4288.2,4288.1,1e-08]
[1757364322646,23.38940442,4288.2,4288.1,1e-08]
[1757364323018,19.49840442,4288.2,4288.1,1e-08]
[1757364323367,14.5332591,4288.2,4288.1,1e-08]
[1757364323667,22.8939591,4288.2,4288.1,1e-08]
[1757364328872,19.0029591,4288.2,4288.1,1e-08]
[1757364329178,22.8939591,4288.2,4288.1,1e-08]
[1757364330463,19.0029591,4288.2,4288.1,1e-08]
[1757364330670,21.9661591,4288.2,4288.1,1e-08]
[1757364330830,29.57960442,4288.2,4288.1,1e-08]
[1757364331174,30.01920442,4288.2,4288.1,1e-08]
[1757364331376,30.50500442,4288.2,4288.1,1e-08]
[1757364333086,29.57960442,4288.2,4288.1,1e-08]
[1757364333447,15.13658925,4287.9,4287.8,1e-08]
[1757364333647,16.37671175,4287.9,4287.8,1e-08]
[1757364333883,19.37671175,4287.9,4287.8,1e-08]
[1757364335948,19.66461175,4287.9,4287.8,1e-08]
[1757364336483,20.59001175,4287.9,4287.8,1e-08]
[1757364336813,21.47844632,4287.9,4287.8,1e-08]
[1757364336970,13.577101,4287.9,4287.8,0.30630001]
[1757364337155,13.577101,4287.9,4287.8,1e-08]
[1757364337354,2.191,4287.7,4287.6,0.002]
[1757364337593,6.23517109,4287.7,4287.6,0.002]
[1757364337756,8.54407827,4287.7,4287.6,0.002]
[1757364338587,15.66207827,4287.7,4287.6,0.002]
[1757364338828,15.66207827,4287.7,4287.6,0.3083]
[1757364341454,15.87907645,4287.7,4287.6,0.3083]
[1757364342242,16.04974695,4287.7,4287.6,0.3083]
[1757364343434,16.04974695,4287.7,4287.6,0.002]
[1757364343642,16.04974695,4287.7,4287.6,0.3083]
[1757364343951,16.04974695,4287.7,4287.6,0.002]
[1757364346322,16.55075381,4287.7,4287.6,0.002]
[1757364348865,16.55112811,4287.7,4287.6,0.002]
[1757364352065,16.55112811,4287.7,4287.6,0.3083]
[1757364352619,10.29945761,4287.7,4287.6,0.7747]
[1757364352823,9.45025272,4287.7,4287.6,1.1112]
[1757364353276,9.45025272,4287.7,4287.6,0.3083]
[1757364353833,10.24225272,4287.7,4287.6,0.3083]
[1757364356076,10.24225272,4287.7,4287.6,1.1112]
[1757364356486,14.13125272,4287.7,4287.6,1.1112]
[1757364356780,14.13125272,4287.7,4287.6,0.7747]
[1757364356938,14.13125272,4287.7,4287.6,0.3083]
[1757364357339,14.13125272,4287.7,4287.6,0.002]
[1757364358077,14.57085272,4287.7,4287.6,0.002]
[1757364361186,15.69710126,4287.7,4287.6,0.002]
[1757364361343,14.41915272,4287.7,4287.6,0.002]
[1757364361540,14.13125272,4287.7,4287.6,0.002]
[1757364363292,14.13125272,4287.7,4287.6,0.3124]
[1757364365561,14.44705272,4287.7,4287.6,0.002]
[1757364365897,14.90655272,4287.7,4287.6,0.002]
[1757364368209,14.59075272,4287.7,4287.6,0.002]
[1757364368587,14.13125272,4287.7,4287.6,0.002]
[1757364368915,14.13125272,4287.7,4287.6,0.3124]
[1757364370228,10.24225272,4287.7,4287.6,0.786]
[1757364370382,9.45025272,4287.7,4287.6,1.1225]
[1757364370575,7.118,4287.7,4287.6,1.1225]
[1757364370798,10.24225272,4287.7,4287.6,1.1225]
[1757364371654,10.24225272,4287.7,4287.6,0.3124]
[1757364372851,10.24225272,4287.7,4287.6,0.786]
[1757364373013,7.91,4287.7,4287.6,1.1225]
[1757364375276,0.001,4287.8,4287.6,1.1225]
[1757364375454,0.001,4287.8,4287.7,0.83342252]
[1757364375621,0.001,4287.8,4287.7,3.16567524]
[1757364375823,0.793,4287.8,4287.7,3.47607524]
[1757364376261,0.793,4287.8,4287.7,3.45275272]
[1757364376461,0.793,4287.8,4287.7,1.1205]
[1757364377074,0.793,4287.8,4287.7,1.82033659]
[1757364377271,0.793,4287.8,4287.7,1.1205]
[1757364379243,0.793,4287.8,4287.7,3.11625272]
[1757364379442,0.001,4287.8,4287.7,3.47607524]
[1757364379776,0.001,4287.8,4287.7,6.47607524]
[1757364380077,0.001,4287.8,4287.7,6.65275272]
[1757364380926,0.001,4287.8,4287.7,6.31625272]
[1757364381360,0.001,4287.8,4287.7,6.65275272]
[1757364383474,0.001,4287.8,4287.7,10.53975272]
[1757364385945,0.001,4287.8,4287.7,10.20325272]
[1757364386182,0.001,4287.8,4287.7,9.72965272]
[1757364387050,0.001,4287.8,4287.7,10.20325272]
[1757364387254,0.001,4287.8,4287.7,9.72965272]
[1757364387656,0.792,4287.7,4287.6,0.002]
[1757364387850,0.792,4287.7,4287.6,3.888]
[1757364387851,2.0576,4287.7,4287.6,3.888]
[1757364388353,4.38985272,4287.7,4287.6,3.888]
[1757364388735,2.0576,4287.7,4287.6,3.888]
[1757364389136,0.001,4287.8,4287.6,4.672]
[1757364389348,0.001,4287.8,4287.6,4.1984]
[1757364389591,1.5673,4287.7,4287.6,0.002]
[1757364389810,2.0576,4287.7,4287.6,0.002]
[1757364390015,2.0576,4287.7,4287.6,3.888]
[1757364390204,2.0576,4287.7,4287.6,0.002]
[1757364390408,2.0576,4287.7,4287.6,3.888]
[1757364390734,2.0576,4287.7,4287.6,0.002]
[1757364390921,2.0576,4287.7,4287.6,3.888]
[1757364391608,4.38985272,4287.7,4287.6,0.002]
[1757364391922,2.0576,4287.7,4287.6,0.002]
[1757364392122,4.38985272,4287.7,4287.6,0.002]
[1757364393919,5.06215406,4287.7,4287.6,0.002]
[1757364394522,2.0576,4287.7,4287.6,0.002]
[1757364394695,1.5673,4287.7,4287.6,0.002]
[1757364395230,4.39165272,4287.7,4287.6,0.002]
[1757364395599,2.0594,4287.7,4287.6,0.002]
[1757364395798,0.792,4287.7,4287.6,0.002]
[1757364395986,0.792,4287.7,4287.6,0.305]
[1757364397634,0.908,4287.7,4287.6,0.305]
[1757364400730,0.908,4287.7,4287.6,0.002]
[1757364401082,0.908,4287.7,4287.6,0.305]
[1757364402031,0.001,4287.8,4287.6,0.7557]
[1757364402233,0.001,4287.8,4287.7,3.886]
[1757364402986,0.792,4287.7,4287.6,0.002]
[1757364403191,1.5309,4287.7,4287.6,3.888]
[1757364404633,0.001,4287.8,4287.6,4.6417]
[1757364404839,0.001,4287.8,4287.7,3.11945272]
[1757364405143,0.001,4287.8,4287.7,2.78295272]
[1757364405291,0.001,4287.8,4287.7,6.42245272]
[1757364405691,0.001,4287.8,4287.7,7.12218158]
[1757364405942,0.001,4287.8,4287.7,7.32218158]
[1757364406933,0.001,4287.8,4287.7,11.20718158]
[1757364409591,0.001,4287.8,4287.7,10.50745272]
[1757364410039,0.001,4287.8,4287.7,10.6007499]
[1757364411830,0.001,4287.8,4287.7,10.2642499]
[1757364412036,0.001,4287.8,4287.7,10.7167499]
[1757364413550,0.001,4287.8,4287.7,9.9295499]
[1757364416354,0.001,4287.8,4287.7,9.83625272]
[1757364420342,0.001,4287.8,4287.7,10.28695272]
[1757364420545,0.001,4287.8,4287.7,10.62345272]
[1757364421331,0.001,4287.8,4287.7,10.28695272]
[1757364421526,0.001,4287.8,4287.7,9.83625272]
[1757364423000,0.001,4287.8,4287.7,9.53325272]
[1757364423223,0.7502,4287.8,4287.7,9.53325272]
[1757364423943,1.2294,4287.8,4287.7,9.53325272]
[1757364424155,1.2294,4287.8,4287.7,7.0]
[1757364424294,1.2294,4287.8,4287.7,3.116]
[1757364424494,1.2294,4287.8,4287.7,6.884]
[1757364424688,1.2294,4287.8,4287.7,9.21625272]
[1757364424890,1.2294,4287.8,4287.7,3.884]
[1757364426043,0.792,4287.7,4287.6,0.002]
[1757364426642,2.45575032,4287.7,4287.6,3.886]
[1757364426790,2.0204,4287.7,4287.6,3.886]
[1757364428005,2.0204,4287.7,4287.6,0.002]
[1757364428193,2.0204,4287.7,4287.6,3.886]
[1757364437576,2.173192,4287.7,4287.6,3.886]
[1757364440133,4.50544472,4287.7,4287.6,0.002]
[1757364440352,5.98791577,4287.7,4287.6,0.002]
[1757364440537,5.96457023,4287.7,4287.6,0.002]
[1757364440966,9.84857023,4287.7,4287.6,0.002]
[1757364442265,5.96457023,4287.7,4287.6,0.002]
[1757364442470,9.84857023,4287.7,4287.6,0.002]
[1757364450668,9.84957023,4287.7,4287.6,0.002]
[1757364451288,16.96757023,4287.7,4287.6,0.002]
[1757364454494,17.09783091,4287.7,4287.6,0.002]
[1757364454796,16.96757023,4287.7,4287.6,0.002]
[1757364455878,13.05807023,4287.7,4287.6,0.002]
[1757364456079,16.94307023,4287.7,4287.6,0.002]
[1757364457516,13.05807023,4287.7,4287.6,0.002]
[1757364457698,16.94307023,4287.7,4287.6,0.002]
[1757364457850,16.03347023,4287.7,4287.6,0.002]
[1757364458493,16.46387023,4287.7,4287.6,0.002]
[1757364459670,15.73917023,4287.7,4287.6,0.002]
[1757364460066,11.85417023,4287.7,4287.6,0.002]
[1757364460275,15.73917023,4287.7,4287.6,0.002]
[1757364460790,16.16957023,4287.7,4287.6,0.002]
[1757364461157,16.47007023,4287.7,4287.6,0.002]
[1757364465407,16.68746758,4287.7,4287.6,0.002]
[1757364466255,16.8179327,4287.7,4287.6,0.002]
[1757364466655,16.5174327,4287.7,4287.6,0.002]
[1757364467056,17.9174327,4287.7,4287.6,0.002]
[1757364467292,16.5174327,4287.7,4287.6,0.002]
[1757364467485,16.8179327,4287.7,4287.6,0.002]
[1757364467882,16.0870327,4287.7,4287.6,0.002]
[1757364469674,16.5174327,4287.7,4287.6,0.002]
[1757364470015,16.0860327,4287.7,4287.6,0.002]
[1757364472537,16.58828713,4287.7,4287.6,0.002]
[1757364472822,16.0860327,4287.7,4287.6,0.002]
[1757364473510,10.74290719,4287.7,4287.6,0.308]
[1757364473837,0.152792,4287.7,4287.6,1.0975]
[1757364473965,0.944792,4287.7,4287.6,1.0975]
[1757364474411,0.152792,4287.7,4287.6,0.761]
[1757364474613,0.152792,4287.7,4287.6,0.308]
[1757364475409,0.944792,4287.7,4287.6,0.308]
[1757364477317,3.27704472,4287.7,4287.6,0.308]
[1757364477482,0.944792,4287.7,4287.6,0.308]
[1757364481313,3.27704472,4287.7,4287.6,0.308]
[1757364481518,3.27704472,4287.7,4287.6,0.002]
[1757364482527,4.51494472,4287.7,4287.6,0.002]
[1757364482722,4.04774472,4287.7,4287.6,0.002]
[1757364482882,3.74474472,4287.7,4287.6,0.002]
[1757364483726,0.944792,4287.7,4287.6,0.3016]
[1757364485996,0.944792,4287.7,4287.6,1.116]
[1757364486384,0.944792,4287.7,4287.6,0.7795]
[1757364486615,0.152792,4287.7,4287.6,3.11180711]
[1757364486820,0.152792,4287.7,4287.6,1.116]
[1757364487321,0.152792,4287.7,4287.6,3.44830711]
[1757364488085,0.152792,4287.7,4287.6,7.33130711]
[1757364490297,0.152792,4287.7,4287.6,6.99480711]
[1757364490499,0.001,4287.8,4287.6,6.99480711]
[1757364490500,0.001,4287.8,4287.7,5.33225272]
[1757364490698,0.001,4287.8,4287.7,6.14665272]
[1757364490913,0.001,4287.8,4287.7,6.44625272]
[1757364491122,0.001,4287.8,4287.7,6.64625272]
[1757364500547,0.001,4287.8,4287.7,6.76225272]
[1757364502773,0.025,4288.8,4288.2,5.33198078]
[1757364502932,1e-08,4288.8,4288.7,2.3317089]
[1757364503135,1e-08,4288.8,4288.7,9.53662598]
[1757364503319,1e-08,4288.8,4288.7,10.6437089]
[1757364503859,1e-08,4288.8,4288.7,10.73696149]
[1757364504469,1e-08,4288.8,4288.7,5.92456149]
[1757364504668,1e-08,4288.8,4288.7,5.62496149]
[1757364504901,1e-08,4288.8,4288.7,9.4127089]
[1757364506300,1e-08,4288.8,4288.7,9.7123089]
[1757364506500,1e-08,4288.8,4288.7,9.4127089]
[1757364507494,1.23790001,4288.8,4288.3,1.79]
[1757364507644,0.792,4288.7,4288.4,3.883]
[1757364507846,1.095,4288.5,4288.4,3.883]
[1757364508175,2.0299,4288.5,4288.4,3.883]
[1757364509392,0.792,4288.4,4288.3,1.79]
[1757364509593,4.05877202,4288.4,4288.3,5.673]
[1757364509834,2.0299,4288.4,4288.3,5.673]
[1757364510771,1.2379,4288.4,4288.3,5.673]
[1757364510976,0.7707,4288.4,4288.3,5.673]
[1757364511425,1.2342,4288.4,4288.3,5.673]
[1757364513235,0.792,4288.6,4288.3,5.673]
[1757364513430,0.7371,4288.4,4288.3,5.673]
[1757364514579,1.2006,4288.4,4288.3,5.673]
[1757364519299,1.2006,4288.4,4288.3,5.675]
[1757364521196,0.793,4288.7,4288.3,8.00691554]
[1757364521413,0.793,4288.7,4288.4,0.02331872]
[1757364521718,1.2227,4288.7,4288.5,3.881]
[1757364521916,1.2227,4288.7,4288.6,0.02331763]
[1757364522134,1.5301,4288.7,4288.6,0.02331763]
[1757364522334,0.7381,4288.7,4288.6,0.02331763]
[1757364522537,0.7381,4288.7,4288.6,2.44776327]
[1757364522538,0.001,4288.7,4288.6,2.44776327]
[1757364522741,1.2016,4288.7,4288.6,0.116]
[1757364523047,1.2016,4288.7,4288.5,3.881]
[1757364523229,0.8932,4288.6,4288.5,3.881]
[1757364523550,1.2006,4288.6,4288.5,3.881]
[1757364523935,1.2006,4288.6,4288.3,4.23990251]
[1757364524246,1.6852,4288.5,4288.4,3.0]
[1757364524454,2.1086,4288.5,4288.4,6.881]
[1757364524807,0.792,4288.4,4288.3,1.792]
[1757364525026,1.6852,4288.4,4288.3,5.673]
[1757364525345,1.9926,4288.4,4288.3,5.673]
[1757364526642,1.9926,4288.4,4288.3,1.792]
[1757364526822,4.53543202,4288.4,4288.3,0.002]
[1757364527022,14.27588598,4288.4,4288.3,0.002]
[1757364527224,3.12414393,4287.9,4287.8,0.002]
[1757364527515,3.66976477,4287.9,4287.8,0.002]
[1757364527711,3.97716477,4287.9,4287.8,0.002]
[1757364527959,4.87036477,4287.9,4287.8,0.002]
[1757364528746,8.75336477,4287.9,4287.8,0.002]
[1757364528930,4.87036477,4287.9,4287.8,0.002]
[1757364529167,4.32474393,4287.9,4287.8,0.002]
[1757364531818,3.53274393,4287.9,4287.8,0.002]
[1757364532034,4.32474393,4287.9,4287.8,0.002]
[1757364532249,0.3074,4287.9,4287.8,0.002]
[1757364532637,0.7371,4287.9,4287.8,0.002]
[1757364532837,4.32474393,4287.9,4287.8,0.002]
[1757364533462,4.99042197,4287.9,4287.8,0.002]
[1757364533965,8.87842197,4287.9,4287.8,0.002]
[1757364535029,4.99042197,4287.9,4287.8,0.002]
[1757364535339,8.87842197,4287.9,4287.8,0.002]
[1757364536119,3.89504393,4287.9,4287.8,0.002]
[1757364536348,4.32474393,4287.9,4287.8,0.002]
[1757364540176,11.44274393,4287.9,4287.8,0.002]
[1757364540371,10.54954393,4287.9,4287.8,0.002]
[1757364540670,10.97924393,4287.9,4287.8,0.002]
[1757364540854,11.44274393,4287.9,4287.8,0.002]
[1757364541167,13.20902197,4287.9,4287.8,0.002]
[1757364541965,17.09702197,4287.9,4287.8,0.002]
[1757364542168,15.33074393,4287.9,4287.8,0.002]
[1757364545641,15.32974393,4287.9,4287.8,0.002]
[1757364546965,14.43654393,4287.9,4287.8,0.002]
[1757364547365,10.24214393,4287.9,4287.8,0.3108]
[1757364548280,10.24214393,4287.9,4287.8,0.002]
[1757364548483,10.97584393,4287.9,4287.8,0.002]
[1757364549285,10.24214393,4287.9,4287.8,0.002]
[1757364550167,10.53304393,4287.9,4287.8,0.002]
[1757364550367,10.97584393,4287.9,4287.8,0.002]
[1757364555449,10.24214393,4287.9,4287.8,0.002]
[1757364555652,7.91,4287.9,4287.8,0.3108]
[1757364555880,10.24214393,4287.9,4287.8,0.3108]
[1757364557407,10.53304393,4287.9,4287.8,0.002]
[1757364557617,11.43414393,4287.9,4287.8,0.002]
[1757364557909,15.32014393,4287.9,4287.8,0.002]
[1757364558608,17.71897018,4287.9,4287.8,0.002]
[1757364558783,25.20131492,4287.9,4287.8,0.002]
[1757364559178,25.41952452,4287.9,4287.8,0.002]
[1757364561348,21.53352452,4287.9,4287.8,0.002]
[1757364561516,14.63825353,4287.9,4287.8,0.002]
[1757364561723,15.53935353,4287.9,4287.8,0.002]
[1757364563442,15.53941702,4287.9,4287.8,0.002]
[1757364564219,10.46041702,4287.9,4287.8,0.002]
[1757364564419,14.12814393,4287.9,4287.8,0.3108]
[1757364564825,10.24214393,4287.9,4287.8,0.3108]
[1757364565020,7.118,4287.9,4287.8,0.7628]
[1757364565283,7.118,4287.9,4287.8,1.1013]
[1757364565429,7.91,4287.9,4287.8,1.1013]
[1757364565974,7.118,4287.9,4287.8,1.1013]
[1757364566173,7.91,4287.9,4287.8,1.1013]
[1757364566586,7.118,4287.9,4287.8,1.1013]
[1757364566924,7.91,4287.9,4287.8,1.1013]
[1757364567571,0.792,4288.1,4287.8,3.43349833]
[1757364567768,0.792,4288.1,4287.9,0.7905]
[1757364567971,0.792,4288.1,4288.0,0.3088]